Cogmind - Beta 16.1 @@@ ROGUE MODE // 2026.06.23 @ 17:58:05 Player: H3-MLN Result: Escaped! Performance ------------- Evolutions (9) 4500 Regions Visited (24) 4800 Robots Destroyed (127) 635 Value Destroyed (6381) 6381 Prototype IDs (62) 1240 Alien Tech Used (4) 800 Bonus (22406) 22406 TOTAL SCORE: 40762 Bonus ------- Triggered High Security 500 High Alert Combat Kills 2518 Follower Combat Kills 8857 Met Imprinter 300 Destroyed Z-Imprinter 1000 Met Zhirov 300 Met Warlord at Base 500 MAIN.C Attacked Warlord 500 Warlord Defense Kills 868 Met Warlord at Research 2000 Invited to Help at Command 2000 Scanned by Researcher 500 Win 3000 Friendly Fire -437 Cogmind --------- Core Integrity 1148/1600 Matter 6/300 Energy 796/1040 System Corruption 22% Temperature Danger (488) Movement Treading (365) Ox1 Location To Epsilon Eridani Parts ------- > --- POWER (4) -------- Quantum Reactor Light Quantum Reactor Vortex Chain Reactor > --- PROPULSION (6) --- Megatreads > --- UTILITY (9) ------ Humpback Humpback Vortex Field Projector > --- WEAPON (7) ------- Plasma Storm > --- INVENTORY (35) --- Micro Antimatter Reactor Light Quantum Reactor Wheel Centrium Wheel Centrium Wheel Centrium Wheel Centrium Wheel Humpback Experimental Energy Well (600) Medium Matter Pod (0) Improved Core Shielding Experimental Propulsion Shielding Hacking Drone Bay (1/1) Minesniffer Drone Bay (0/10) Transdimensional Reconstructor Terrabomb Plasma Storm Rocket Array Advanced Remote Datajack Multitool Peak State ------------ > --- POWER ------------ Quantum Reactor Light Quantum Reactor Vortex Chain Reactor > --- PROPULSION ------- Megatreads > --- UTILITY ---------- Advanced Cooling System Advanced Cooling System Humpback Experimental Energy Well Vortex Field Projector > --- WEAPON ----------- 1B-0RG's Assimilator Sigix Broadsword > --- INVENTORY -------- Micro Antimatter Reactor Light Quantum Reactor Light Quantum Reactor Light Quantum Reactor Wheel Centrium Wheel Centrium Wheel Centrium Wheel Centrium Wheel Humpback Humpback Medium Matter Pod Advanced Phase Shifter Improved Core Shielding Experimental Propulsion Shielding Zionite Weapon Casing Hacking Drone Bay Minesniffer Drone Bay Transdimensional Reconstructor Subatomic Replicator Terrabomb Plasma Storm Rocket Array Advanced Remote Datajack Multitool [Rating: 259] Favorites ----------- Power Zionite Light DM Reactor Engine Angular Momentum Engine Power Core Neutrino Core Reactor Zionite Light DM Reactor Propulsion Armored Huge Wheel Treads Light Treads Wheel Armored Huge Wheel Hover Unit Zionite Glidesys II Utility Humpback Device Power Bank Storage Humpback Processor Advanced Signal Interpreter Hackware Makeshift Hacking Suite Protection Layered Medium Armor Plating Weapon 1B-0RG's Assimilator Energy Gun Subdweller Laser Energy Cannon Powered Cannon Ballistic Gun Subdweller Machine Gun Ballistic Cannon Battle Cannon Launcher Rocket Launcher Special Weapon RU-N14's Throwing Claymores Slashing Weapon Great Axe Piercing Weapon CR-A16's Pointy Stick Special Melee Weapon 1B-0RG's Assimilator Build | -11 -10 -10 -10 -8 -6 -6 -6 -6 -6 -5 -5 -5 -5 -5 -4 -4 -4 -4 -4 -3 -3 -2 -2 -1 ------- Run | Yrd Mat Min Sub Scr Fac Low Low Zio Dee Pro Fac Upp Upp War Pro Fac Upp Upp Zhi Pro Res Res Qua Acc Slots Evolved 16 | . . . . . 8 . . . . . 2 . . . . 2 . . . . 2 . . 2 Power 1 | . . . . . . . . . . . . . . . . . . . . . . . . 1 Propulsion 4 | . . . . . 1 . . . . . 1 . . . . 1 . . . . 1 . . . Utility 6 | . . . . . 3 . . . . . . . . . . 1 . . . . 1 . . 1 Weapon 5 | . . . . . 4 . . . . . 1 . . . . . . . . . . . . . Parts Attached 119 | 7 4 3 14 5 7 6 5 5 13 1 5 . 1 8 . 2 . . 3 . 3 12 4 11 Power 19 | 1 1 . 3 1 1 . 1 . 1 . . . 1 2 . . . . 1 . . 1 1 4 Engine 7 | 1 1 . 3 1 . . . . . . . . 1 . . . . . . . . . . . Core 2 | . . . . . 1 . 1 . . . . . . . . . . . . . . . . . Reactor 10 | . . . . . . . . . 1 . . . . 2 . . . . 1 . . 1 1 4 Propulsion 18 | 2 . . 4 2 . 1 . . 1 . . . . 1 . 1 . . . . 1 5 . . Treads 3 | 1 . . 1 . . . . . . . . . . . . . . . . . . 1 . . Leg . | . . . . . . . . . . . . . . . . . . . . . . . . . Wheel 14 | 1 . . 3 2 . 1 . . . . . . . 1 . 1 . . . . 1 4 . . Hover 1 | . . . . . . . . . 1 . . . . . . . . . . . . . . . Flight . | . . . . . . . . . . . . . . . . . . . . . . . . . Utility 52 | 2 1 . 2 . 5 4 4 2 8 1 4 . . 5 . 1 . . 2 . 2 2 2 5 Device 23 | 1 . . 1 . 2 2 2 1 4 . . . . 3 . . . . 1 . 1 1 2 2 Storage 9 | 1 1 . 1 . . 1 . 1 1 . . . . 1 . . . . 1 . 1 . . . Processor 4 | . . . . . . . . . . . 1 . . 1 . 1 . . . . . 1 . . Hackware 3 | . . . . . . . . . . . 3 . . . . . . . . . . . . . Protection 13 | . . . . . 3 1 2 . 3 1 . . . . . . . . . . . . . 3 Artifact . | . . . . . . . . . . . . . . . . . . . . . . . . . Weapon 30 | 2 2 3 5 2 1 1 . 3 3 . 1 . . . . . . . . . . 4 1 2 Energy Gun 6 | 1 . . 1 . . . . . 1 . . . . . . . . . . . . 1 . 2 Energy Cannon 3 | . 2 . . . . . . . . . 1 . . . . . . . . . . . . . Ballistic Gun 5 | 1 . 2 2 . . . . . . . . . . . . . . . . . . . . . Ballistic Cannon 2 | . . 1 . . . . . . . . . . . . . . . . . . . 1 . . Launcher 3 | . . . 1 1 . . . 1 . . . . . . . . . . . . . . . . Special Weapon 6 | . . . 1 . . . . 1 2 . . . . . . . . . . . . 2 . . Impact Weapon . | . . . . . . . . . . . . . . . . . . . . . . . . . Slashing Weapon 2 | . . . . 1 . . . . . . . . . . . . . . . . . . 1 . Piercing Weapon 1 | . . . . . . . . 1 . . . . . . . . . . . . . . . . Special Melee Weapon 2 | . . . . . 1 1 . . . . . . . . . . . . . . . . . . Unidentified Prototypes 32 | . . . . . 2 . 2 3 10 . . . . 6 . . . . 4 . . 1 2 2 Parts Lost 19 | . . 1 4 . . . . 1 3 . . . . . . . . . . . . . . 10 Power 2 | . . . 1 . . . . . . . . . . . . . . . . . . . . 1 Propulsion 2 | . . . 1 . . . . . . . . . . . . . . . . . . . . 1 Utility 9 | . . . 1 . . . . . 1 . . . . . . . . . . . . . . 7 Weapon 6 | . . 1 1 . . . . 1 2 . . . . . . . . . . . . . . 1 Highest Loss Streak 5 | . . 1 2 . . . . 1 2 . . . . . . . . . . . . . . 5 To Critical Strikes . | . . . . . . . . . . . . . . . . . . . . . . . . . Average Backups 26 | 4 8 13 19 27 32 31 30 29 30 31 29 28 30 26 25 24 25 25 24 24 25 24 20 21 Power . | . 1 1 1 1 1 . . . . . . . . . . . . . . . . . . 1 Propulsion 2 | 1 2 2 2 3 2 3 3 2 2 2 1 2 2 1 1 1 2 2 2 2 2 2 1 3 Utility 15 | . . 3 6 10 16 19 19 19 21 21 19 18 20 16 15 15 15 15 14 13 13 13 11 8 Weapon 5 | 1 5 7 6 7 7 4 3 3 4 5 5 5 5 6 7 6 6 6 6 6 6 5 4 3 Tool/Special . | . . . . . . . . . . . . . . . . . . . . . . . . . Unused Backups 50 | . 2 1 4 3 . 6 1 4 6 . . . . 4 . 1 . . 2 2 1 5 1 7 Power 5 | . 1 . . 1 . 1 . . . . . . . . . . . . . . . . . 2 Propulsion 7 | . 1 . 1 . . . . . . . . . . . . 1 . . . . . 3 . 1 Utility 24 | . . . 1 1 . 3 1 2 5 . . . . 4 . . . . 2 2 . 1 . 2 Weapon 9 | . . 1 2 1 . 2 . 1 1 . . . . . . . . . . . . . 1 . Tool/Special 5 | . . . . . . . . 1 . . . . . . . . . . . . 1 1 . 2 Average Slot Usage (%) 64 | . 100 99 90 72 65 60 61 59 53 51 53 54 57 61 62 62 61 62 61 62 61 65 67 55 Engine 3 | . 14 14 13 14 5 . . . . . . . 3 4 4 4 4 4 4 4 3 . . . Core 2 | . . . . . . 6 6 5 4 5 4 4 4 3 . . . . . . . . . . Reactor 4 | . . . . . . . . . 4 5 4 4 4 8 13 12 11 12 12 12 11 11 9 10 Treads 1 | . 14 14 7 . . . . . . . . . . . . . . . . . . . . 1 Wheel 14 | . 14 14 20 28 20 14 12 11 10 9 13 13 13 13 12 12 12 12 12 12 11 14 20 9 Device 9 | . 14 14 5 . 15 6 5 5 9 10 7 12 13 10 12 16 15 12 11 13 16 19 17 13 Storage 8 | . 14 14 14 14 6 7 11 12 6 5 4 4 4 7 4 4 4 4 4 6 3 3 6 6 Processor 1 | . . . . . . . . . . . 1 4 4 4 4 4 4 4 4 4 3 4 4 1 Protection 3 | . . . . . 2 10 11 11 7 4 . . . . . . . 4 3 . 1 . . . Energy Gun 1 | . . . 7 6 . . . . . . . . . . . . . . . . . . . 2 Energy Cannon 1 | . 26 7 . . . . . . . . 3 4 4 4 4 4 4 4 4 4 3 . . . Ballistic Gun 2 | . . 14 14 6 . . . . . . . . . . . . . . . . . . . . Slashing Weapon 1 | . . . . 1 6 5 6 1 . . . . . . . . . . . . . . 3 1 Special Melee Weapon 4 | . . . . . 5 6 6 7 5 5 4 4 4 4 4 4 4 4 4 4 3 3 4 2 Peak Build Rating 259 | 7 10 10 25 29 103 106 117 121 140 137 148 148 151 181 179 195 191 192 193 193 208 231 234 259 Average Rating 128 | 4 9 9 18 24 101 104 110 116 133 133 144 145 149 171 176 189 190 192 191 190 204 206 224 229 On Entrance 127 | . 7 10 9 25 27 101 106 117 115 137 136 148 146 151 181 178 191 191 192 193 189 204 218 224 Avg Prop Armor Cover (%) 9 | 17 11 11 10 4 . . . . . . . . . . . . . . . . . . . . Naked Turns . | . . . . . . . . . . . . . . . . . . . . . . . . . Heaviest Build 695 | 13 34 34 213 213 275 275 303 306 313 307 316 311 317 361 364 374 365 365 361 359 361 370 375 695 Greatest Support 600 | 16 16 16 40 28 48 48 40 44 40 40 50 50 50 50 50 68 68 68 68 68 84 600 92 600 Greatest Overweight (x) 95 | . 2 2 10 10 5 7 7 95 10 23 7 6 6 7 29 7 5 5 5 5 5 5 4 5 Average Overweight (x) 5 | . 1 1 3 8 5 6 6 7 7 7 5 5 6 6 7 6 4 5 5 5 4 3 3 2 Largest Inventory Capacity 35 | 8 15 15 35 35 35 35 35 35 35 35 35 35 35 35 35 35 35 35 35 35 35 35 35 35 Average Capacity 33 | 5 11 15 26 35 35 35 35 35 35 35 35 35 35 35 35 35 35 35 35 35 35 35 35 35 Most Carried 35 | 6 12 15 31 35 35 35 35 35 35 35 35 35 35 35 35 35 35 35 35 35 35 35 35 35 Average Carried 32 | 4 8 13 22 32 33 34 34 34 34 35 33 33 35 34 34 34 35 35 34 34 34 34 34 32 Final Capacity 35 | 8 15 15 35 35 35 35 35 35 35 35 35 35 35 35 35 35 35 35 35 35 35 35 35 35 Final Carried 35 | 6 12 15 31 34 35 35 35 35 35 35 33 35 35 35 35 35 35 35 35 35 35 35 35 25 Class Distribution -------------------- 75% | Hauler-Mutant 13% | Generator-Mutant 6% | Mutant Dominant Class ---------------- Mutant | -10/Materials Mutant | -10/Mines Hauler-Mutant | -10/Subcaves Hauler-Mutant | -8/Scraptown Hauler-Mutant | -6/Factory Hauler-Mutant | -6/Lower Caves Hauler-Mutant | -6/Lower Caves Hauler-Mutant | -6/Zion Hauler-Mutant | -6/Deep Caves Hauler-Mutant | -5/Proximity Caves Hauler-Mutant | -5/Factory Hauler-Mutant | -5/Upper Caves Hauler-Mutant | -5/Upper Caves Hauler-Mutant | -5/Warlord Generator-Mutant | -4/Proximity Caves Hauler-Mutant | -4/Factory Hauler-Mutant | -4/Upper Caves Hauler-Mutant | -4/Upper Caves Generator-Mutant | -4/Zhirov Generator-Mutant | -3/Proximity Caves Generator-Mutant | -3/Research Generator-Mutant | -2/Research Hauler-Mutant | -2/Quarantine Generator-Mutant | -1/Access Resources | -11 -10 -10 -10 -8 -6 -6 -6 -6 -6 -5 -5 -5 -5 -5 -4 -4 -4 -4 -4 -3 -3 -2 -2 -1 ----------- Run | Yrd Mat Min Sub Scr Fac Low Low Zio Dee Pro Fac Upp Upp War Pro Fac Upp Upp Zhi Pro Res Res Qua Acc Matter Collected 13025 | 297 220 206 677 66 255 1567 966 180 871 294 120 886 10 100 120 290 205 58 60 85 847 904 2692 1049 Remotely . | . . . . . . . . . . . . . . . . . . . . . . . . . Salvage Created 7473 | 170 329 301 431 . 131 208 490 . 163 . 88 378 87 480 206 45 89 81 97 143 271 318 540 2427 Parts 292 | 9 25 15 33 . 2 7 10 . 19 . 4 16 . 5 9 1 1 4 . 9 5 6 20 92 Haulers Intercepted 2 | . . . . . . . . . . . . . . . . . . . . . 1 1 . . Recyclers Shooed 4 | 2 . 1 . . . . . . . . . . . . . . . . . . . . 1 . Parts Field Recycled . | . . . . . . . . . . . . . . . . . . . . . . . . . Retrieved Matter . | . . . . . . . . . . . . . . . . . . . . . . . . . Parts Self-Destructed 104 | . . . 6 . . 8 8 1 . 4 . 15 . . 33 . 7 11 . 11 . . . . Prevented 13 | . . . . . . 4 4 . . . . . . . . . 3 2 . . . . . . Parts Restored . | . . . . . . . . . . . . . . . . . . . . . . . . . Kills | -11 -10 -10 -10 -8 -6 -6 -6 -6 -6 -5 -5 -5 -5 -5 -4 -4 -4 -4 -4 -3 -3 -2 -2 -1 ------- Run | Yrd Mat Min Sub Scr Fac Low Low Zio Dee Pro Fac Upp Upp War Pro Fac Upp Upp Zhi Pro Res Res Qua Acc Combat Hostiles Destroyed 97 | . 7 3 14 . . 2 . . 6 . 1 5 . 8 3 . 1 1 . 2 3 5 2 34 Melee 10 | . . . . . . 2 . . . . . . . . . . . . . . . . 2 6 Guns 16 | . . 1 6 . . . . . . . . . . . . . . . . . . . . 9 Cannons 34 | . 7 2 5 . . . . . . . . 5 . 7 3 . 1 . . 2 1 1 . . AOE 28 | . . . 3 . . . . . 6 . . . . . . . . . . . . 3 . 16 Classes Destroyed 28 | 2 4 . 2 . . 2 1 . 3 . . 3 . 3 . . . . . 1 1 2 1 3 Worker 1 | . . . . . . . . . . . . . . . . . . . . . . . . 1 Builder 7 | . 2 2 . . . . . . . . . . . . . . . . . . 1 . 1 1 Tunneler 4 | 3 . . . . . . . . . . . . . . . . . . . . . . . 1 Hauler 2 | . . . . . . . . . . . . . . . . . . . . . 1 1 . . Recycler 8 | 1 . 2 . . 1 . . . . . . . . . . . . . . . . . 3 1 Minesweeper 2 | . . . . . . 1 1 . . . . . . . . . . . . . . . . . Mechanic 1 | . . . . . . . . . . . . . . . . . . . . . . . . 1 Operator 1 | . . . . . . . . . . . 1 . . . . . . . . . . . . . Drone 2 | . . . . . . . . . . . . . . . . . . . . . . . . 2 Watcher 3 | . 2 . . . . . . . . . . . . . . 1 . . . . . . . . Swarmer 9 | . 3 3 . . . . . . . . . 1 . . . . . . . . 2 . . . Saboteur 1 | . . . . . . . . . . . . . . . . . . . . . . . . 1 Grunt 37 | . 4 . . . . 2 . . . . 1 1 . 3 2 . 1 . . 1 . 3 . 19 Brawler 5 | . . . . . . . . . . . . 1 . . 1 . . . . . . . . 3 Duelist 4 | . . . . . . . . . . . . 1 . . . . . . . . . . 1 2 Protector 4 | . . . . . . . . . . . . . . 3 . . . . . . . . . 1 Researcher 1 | . . . . . . . . . . . . . . . . . . . . . . . 1 . Sentry 2 | . . . . . . . . . . . . 1 . . . . . 1 . . . . . . Specialist 1 | . . . . . . . . . . . . . . 1 . . . . . . . . . . Hunter 3 | . . . . . . . . . . . . . . 1 . . . . . . . . . 2 Programmer 9 | . . . . . . . . . . . . . . . . . . . . 1 1 . 1 6 Investigator 2 | . . . . . . . . . . . . . . . . . . . . . . . . 2 Striker 1 | . . . . . . . . . . . . . . . . . . . . . . 1 . . Executioner 1 | . . . . . . . . . . . . . . . . . . . . . . 1 . . Artisan 1 | . . . 1 . . . . . . . . . . . . . . . . . . . . . Subdweller 14 | . . . 14 . . . . . . . . . . . . . . . . . . . . . Z-Technician 5 | . . . . . . . . . 5 . . . . . . . . . . . . . . . Z-Light 3 | . . . . . . . . . 3 . . . . . . . . . . . . . . . Decomposer 3 | . . . . . . . . . . . . 3 . . . . . . . . . . . . Packrat 4 | . . . . . . . 3 . . . . . 1 . . . . . . . . . . . Samaritan 1 | . . . . . . . 1 . . . . . . . . . . . . . . . . . Assembled 3 | . . . . . . . . . 3 . . . . . . . . . . . . . . . Savage 1 | . . . . . . 1 . . . . . . . . . . . . . . . . . . Best Kill Streak 11 | 2 5 3 4 . 1 2 1 . 4 . 1 3 . 4 2 1 1 1 . 1 1 3 1 11 Combat Bots Only 8 | . 5 3 4 . . 2 . . 3 . 1 3 . 4 2 . 1 1 . 1 1 3 1 8 Max Kills in Single Turn 4 | 1 1 1 2 . 1 1 1 . 3 . 1 1 1 1 1 1 1 1 . 1 1 3 1 4 Gunslinging . | . . . . . . . . . . . . . . . . . . . . . . . . . Exploded 3 | . . . 2 . . . . . 3 . . . . . . . . . . . . 3 . 3 Melee 1 | . . . . . . 1 . . . . . . . . . . . . . . . . 1 1 Uniques/NPCs Destroyed 1 | . . . . . . . . . 1 . . . . . . . . . . . . . . . Z-Imprinter (-6/Deep Caves) Combat | -11 -10 -10 -10 -8 -6 -6 -6 -6 -6 -5 -5 -5 -5 -5 -4 -4 -4 -4 -4 -3 -3 -2 -2 -1 -------- Run | Yrd Mat Min Sub Scr Fac Low Low Zio Dee Pro Fac Upp Upp War Pro Fac Upp Upp Zhi Pro Res Res Qua Acc Hostile Shots Fired 946 | . 16 15 49 . 26 7 . . 51 . . 8 . 1 21 2 8 . . 4 11 4 70 653 Missed 267 | . 7 2 17 . 9 1 . . 16 . . 2 . . 11 1 3 . . 3 4 2 28 161 Hits 679 | . 9 13 32 . 17 6 . . 35 . . 6 . 1 10 1 5 . . 1 7 2 42 492 Melee 21 | . . . . . . 3 . . . . . . . . . . . . . . . . . 18 Projectile 658 | . 9 13 32 . 17 3 . . 35 . . 6 . 1 10 1 5 . . 1 7 2 42 474 AOE 4 | . . . 2 . . . . . . . . . . . . . . . . . . . . 2 Critical Strikes 39 | . . . 1 . . 1 . . . . . . . . . . . . . . 1 . 5 31 Actively Blocked 2 | . . . . . . . . . . . . . . . . . . . . . 1 . . 1 Part Disruptions 1 | . . . . . . . . . . . . . . . . . . . . . . . . 1 Damage Taken 11188 | . 97 111 807 . 295 148 14 . 749 . . 58 . 223 206 21 75 . . 29 155 84 1140 6976 Core 1233 | . 25 21 156 . 38 53 14 . 77 . . 10 . 116 22 . . . . 10 . 40 199 452 Absorbed by Shields 7146 | . . . . . . . . . 411 . . 50 . 68 53 6 22 . . 6 49 13 312 6156 Reduced by Siege Mode 791 | . . . . . . . . . . . . . . . . . . . . . . . . 791 Redirected to Shielding 410 | . . . . . . . . . . . . . . . 47 . . . . . 33 . . 330 Ignored by Resistances 235 | . . . . . . . . . . . . . . . . . . . . . . . 191 44 Regen/Repaired (Parts) 1995 | . . . . 136 51 . . . 202 . . 16 . 26 23 6 15 . . . . . 454 1066 Core Remaining (%) 79 | 100 . . . 19 . . . . . 78 . . . . 85 . . . . 99 100 . 83 71 Volleys Fired 385 | 9 23 16 78 . . . . . 6 2 17 23 3 47 16 7 4 17 3 3 24 18 6 63 Largest 2 | 2 2 2 2 . . . . . 1 1 1 1 1 1 1 1 1 1 1 1 1 1 1 2 Hottest 300 | 70 112 112 90 . . . . . 45 33 40 40 40 40 40 40 40 40 40 40 40 58 58 300 Shots Fired 493 | 18 43 29 117 . . . . . 6 2 17 23 3 47 16 7 5 18 3 3 24 18 6 88 Gun 194 | 18 . 19 66 . . . . . . . . . . . . . . . . . . 2 1 88 Cannon 273 | . 43 10 42 . . . . . . . 17 23 3 47 16 7 5 18 3 3 24 7 5 . Launcher 11 | . . . 5 . . . . . 4 2 . . . . . . . . . . . . . . Special 15 | . . . 4 . . . . . 2 . . . . . . . . . . . . 9 . . Kinetic 136 | 9 . 19 100 . . . . . . . . . . . . . . . . . . 3 5 . Thermal 220 | 9 . . 12 . . . . . . . 17 23 3 47 16 7 5 18 3 3 24 4 . 29 Explosive 13 | . . . 5 . . . . . 4 2 . . . . . . . . . . . 2 . . Electromagnetic 53 | . 43 10 . . . . . . . . . . . . . . . . . . . . . . Entropic 62 | . . . . . . . . . . . . . . . . . . . . . . 2 1 59 Robot Hit Streak 22 | 3 8 5 14 . . . . . 2 . 3 3 5 10 4 2 4 7 3 2 3 8 . 22 Robot Miss Streak 3 | 3 2 2 2 . . . . . 1 . 1 2 . 3 3 1 . 1 . 1 3 1 . 3 Penetration Max . | . . . . . . . . . . . . . . . . . . . . . . . . . Secondary Targets 2 | . . . . . . . . . . . . . . . . . . . . . . . . 2 Max Gunslinging Chain 1 | . . . . . . . . . . . . . . . . . . . . . . . . 1 Shots Hit Robots 344 | 9 27 16 66 . 6 8 15 2 9 . 3 10 3 24 8 3 3 3 3 2 10 14 13 87 Core Hits 307 | 5 13 9 28 . 2 5 4 . 22 3 2 9 . 13 5 1 2 1 3 2 3 9 5 161 Critical Kills 5 | . . . . . . . . . . . 1 . . 1 . . . 1 . . 1 1 . . Critical Parts Destroyed 1 | . . . . . . . . . . . . . . . . . . . . . . . . 1 Critical Strikes 13 | . . . 3 . . . 2 . . . 1 . . 1 . . . 1 . . 1 1 1 2 Meltdown 5 | . . . . . . . . . . . 1 . . 1 . . . 1 . . 1 1 . . Blast 3 | . . . 3 . . . . . . . . . . . . . . . . . . . . . Sever 4 | . . . . . . . 2 . . . . . . . . . . . . . . . 1 1 Detonate 1 | . . . . . . . . . . . . . . . . . . . . . . . . 1 Melee Attacks 92 | . . . . . 6 13 17 3 7 . 1 . . . . . . . . . . 1 27 17 Impact . | . . . . . . . . . . . . . . . . . . . . . . . . . Slashing 80 | . . . . . 6 12 17 1 . . . . . . . . . . . . . . 27 17 Piercing 7 | . . . . . . . . . 6 . . . . . . . . . . . . 1 . . Sneak Attacks 34 | . . . . . 4 4 9 2 6 . 1 . . . . . . . . . . . 6 2 Combat Hostiles . | . . . . . . . . . . . . . . . . . . . . . . . . . Follow-up Attacks . | . . . . . . . . . . . . . . . . . . . . . . . . . Damage Inflicted 22260 | 120 674 221 1741 . 390 296 1035 . 909 90 90 574 147 1173 510 184 141 145 158 95 606 1203 1412 10346 Guns 3718 | 120 . 145 801 . . . . . . . . . . . . . . . . . . . . 2652 Cannons 5323 | . 674 76 467 . . . . . . . 90 574 147 1173 510 168 141 145 158 95 606 299 . . Explosions 8608 | . . . 460 . . . . . 541 90 . . . . . . . . . . . 839 . 6678 Melee 4517 | . . . . . 390 296 1035 . 368 . . . . . . . . . . . . . 1412 1016 Ramming 16 | . . . . . . . . . . . . . . . . 16 . . . . . . . . Kinetic 1443 | 58 . 145 1107 . . . . . . . . . . . . . . . . . . 133 . . Thermal 11262 | 62 . . 174 . . . . . . . 90 574 147 1173 510 168 141 145 158 95 606 166 . 7053 Explosive 1930 | . . . 460 . . . . . 541 90 . . . . . . . . . . . 839 . . Electromagnetic 750 | . 674 76 . . . . . . . . . . . . . . . . . . . . . . Impact . | . . . . . . . . . . . . . . . . . . . . . . . . . Slashing 4214 | . . . . . 390 296 1035 . . . . . . . . . . . . . . 65 1412 1016 Piercing 368 | . . . . . . . . . 368 . . . . . . . . . . . . . . . Entropic 2277 | . . . . . . . . . . . . . . . . . . . . . . . . 2277 Highest Corruption 22 | . . . . . . . . . . . . . . . . 1 1 1 1 1 3 . 2 22 Average Corruption 2 | . . . . . . . . . . . . . . . . 1 1 1 1 1 2 . 1 8 Corruption Purged . | . . . . . . . . . . . . . . . . . . . . . . . . . Corruption Blocked . | . . . . . . . . . . . . . . . . . . . . . . . . . Effects 62 | . . . . . . . . . . . . . . . . 1 7 4 1 6 4 . 1 38 Message Errors 12 | . . . . . . . . . . . . . . . . . 2 1 . 2 . . . 7 Matter Fused 11 | . . . . . . . . . . . . . . . . 1 2 . . 1 . . 1 6 Heat Flow Errors 11 | . . . . . . . . . . . . . . . . . 1 . . 2 1 . . 7 Energy Discharges 8 | . . . . . . . . . . . . . . . . . 1 . 1 . 1 . . 5 Parts Rejected 3 | . . . . . . . . . . . . . . . . . . . . . . . . 3 Parts Fused 1 | . . . . . . . . . . . . . . . . . . . . . . . . 1 Data Loss (minor) 8 | . . . . . . . . . . . . . . . . . . 1 . 1 1 . . 5 Data Loss (major) 1 | . . . . . . . . . . . . . . . . . . . . . 1 . . . Misfires 2 | . . . . . . . . . . . . . . . . . 1 1 . . . . . . Alerts 1 | . . . . . . . . . . . . . . . . . . 1 . . . . . . Weapon Failures 4 | . . . . . . . . . . . . . . . . . . . . . . . . 4 Overload Shots . | . . . . . . . . . . . . . . . . . . . . . . . . . Overflow Damage 1547 | . 10 . . . 68 . 337 . 128 . . 9 84 6 . . . . . . 80 45 404 376 Projectiles 212 | . 10 . . . . . . . . . . 9 84 6 . . . . . . 80 23 . . Explosions 51 | . . . . . . . . . . . . . . . . . . . . . . 22 . 29 Melee 1284 | . . . . . 68 . 337 . 128 . . . . . . . . . . . . . 404 347 Knockbacks 5 | . . . 5 . . . . . . . . . . . . . . . . . . . . . Impact . | . . . . . . . . . . . . . . . . . . . . . . . . . Kinetic 5 | . . . 5 . . . . . . . . . . . . . . . . . . . . . Secondary . | . . . . . . . . . . . . . . . . . . . . . . . . . Self-Inflicted Damage 285 | . . . . . . . . . . . . . . . . 8 . . . . . . . 277 Shots 12 | . . . . . . . . . . . . . . . . . . . . . . . . 12 Rammed 1 | . . . . . . . . . . . . . . . . 1 . . . . . . . . Targets Rammed 1 | . . . . . . . . . . . . . . . . 1 . . . . . . . . Kicked . | . . . . . . . . . . . . . . . . . . . . . . . . . Crushed . | . . . . . . . . . . . . . . . . . . . . . . . . . Highest Temperature 470 | 36 222 204 . . . . . . 52 . 76 96 60 247 104 9 196 30 36 243 151 44 . 470 Average Temperature 74 | 14 68 118 . . . . . . 24 . 27 34 27 89 41 9 60 15 21 94 28 18 . 135 Received Heat Transfer 1273 | . 33 . 78 . 120 27 . . 198 . . 8 . 16 33 . 14 . . . 7 7 134 598 Effects 7 | . . . . . . . . . . . . . . 1 . . . . . . . . . 6 Shutdowns 1 | . . . . . . . . . . . . . . . . . . . . . . . . 1 Interference 6 | . . . . . . . . . . . . . . 1 . . . . . . . . . 5 Siege Activations 4 | . . . . . . . . . . . . . . . . . . . . . . . . 4 Total Turns 278 | . . . . . . . . . . . . . . . . . . . . . . . . 278 Longest Duration 94 | . . . . . . . . . . . . . . . . . . . . . . . . 94 Martial Activations . | . . . . . . . . . . . . . . . . . . . . . . . . . Shielding Activations . | . . . . . . . . . . . . . . . . . . . . . . . . . Robots Disrupted . | . . . . . . . . . . . . . . . . . . . . . . . . . Combat Hostiles . | . . . . . . . . . . . . . . . . . . . . . . . . . Robots Corrupted . | . . . . . . . . . . . . . . . . . . . . . . . . . Combat Hostiles . | . . . . . . . . . . . . . . . . . . . . . . . . . Parts Fried 3 | . 2 . . . . 1 . . . . . . . . . . . . . . . . . . Impact Corruptions . | . . . . . . . . . . . . . . . . . . . . . . . . . Robots Melted 9 | . . . . . . . . . . . 1 . . 1 . . . 1 . . 2 1 . 3 Combat Hostiles 9 | . . . . . . . . . . . 1 . . 1 . . . 1 . . 2 1 . 3 Parts Melted 41 | . . . . . . 1 . . . . 2 2 . 7 . . 1 2 . . 8 . . 18 Heat Transferred 9768 | 185 . . 250 . . . . . . . . . . . . . . . . . . . . 9333 Parts Sabotaged 1 | . . . . . . . . . . . . . . . . . . . . . . . . 1 Parts Stolen . | . . . . . . . . . . . . . . . . . . . . . . . . . Parts Stripped . | . . . . . . . . . . . . . . . . . . . . . . . . . Power Chain Reactions . | . . . . . . . . . . . . . . . . . . . . . . . . . Alert | -11 -10 -10 -10 -8 -6 -6 -6 -6 -6 -5 -5 -5 -5 -5 -4 -4 -4 -4 -4 -3 -3 -2 -2 -1 ------- Run | Yrd Mat Min Sub Scr Fac Low Low Zio Dee Pro Fac Upp Upp War Pro Fac Upp Upp Zhi Pro Res Res Qua Acc Maximum Alert Level 5 | . . . . . . . . . . . . . . . . . . . . . 1 2 4 5 Low Security (%) 50 | 100 100 100 . . 100 . . . . . 100 . . . . 100 . . . . 61 . 29 . Level 1 18 | . . . . . . . . . . . . . . . . . . . . . 38 29 55 . Level 2 11 | . . . . . . . . . . . . . . . . . . . . . . 70 1 . Level 3 4 | . . . . . . . . . . . . . . . . . . . . . . . 11 15 Level 4 5 | . . . . . . . . . . . . . . . . . . . . . . . 3 30 Level 5 . | . . . . . . . . . . . . . . . . . . . . . . . . 2 High Security 8 | . . . . . . . . . . . . . . . . . . . . . . . . 52 Max Security . | . . . . . . . . . . . . . . . . . . . . . . . . . Peak Influence 2929 | 10 139 65 . . 68 . . . . . 178 . . . . 130 . . . . 379 527 1416 2929 Initial 849 | . . 37 . . . . . . . . . . . . . 130 . . . . . 213 258 849 Average 456 | . 38 8 . . 17 . . . . . 71 . . . . 76 . . . . 154 426 344 1776 Influence Increases 9606 | 20 230 105 . . 93 163 212 40 . 156 283 350 . 872 602 132 140 218 . 135 590 765 1840 2660 Destroy 0b10 Robot/C 5060 | . 140 60 . . 60 100 120 40 . 100 120 220 . 540 340 40 80 120 . 80 280 220 720 1680 Destroy 0b10 Robot/NC 270 | 20 20 20 . . 5 5 15 . . . 15 . . 25 10 5 . . . . 25 5 45 55 Destroy Leader 670 | . 34 10 . . 20 . . . . 10 24 10 . . 30 22 10 20 . 20 74 42 104 240 Allied During Kill 1967 | . . . . . 8 43 77 . . 46 72 120 . 307 222 40 50 78 . 35 187 109 281 292 Successful Hack 37 | . 6 . . . . . . . . . 15 . . . . 4 . . . . . . 12 . Disable Machine 210 | . . . . . . . . . . . 15 . . . . 15 . . . . . . 165 15 Anti-Garrison Action 500 | . . . . . . . . . . . . . . . . . . . . . . 350 150 . Destroy Structure 727 | . . . . . . . . . . . 22 . . . . 6 . . . . 24 39 318 318 Partial Spotted 15 | . . . . . . . . . . . . . . . . . . . . . . . 15 . Lose Combat Pursuer 150 | . 30 15 . . . 15 . . . . . . . . . . . . . . . . 30 60 Influence Decreases 6687 | 20 132 203 . . 65 191 210 42 . 156 259 170 204 140 1127 319 160 218 . 135 211 684 884 1157 Entered New Map 1876 | . . 61 . . . 11 . 2 . . . 10 40 . 732 77 8 . . . . 166 202 567 Time Decay 4181 | 20 132 132 . . 65 180 190 40 . 156 259 160 164 140 335 222 152 218 . 135 211 458 542 270 Lost Part 110 | . . 10 . . . . . . . . . . . . . . . . . . . . . 100 Lost Ally 520 | . . . . . . . 20 . . . . . . . 60 20 . . . . . 60 140 220 Squads Dispatched 49 | . . . . . . . . . . . 1 . . . 1 3 . . . . 3 1 11 29 Investigation 1 | . . . . . . . . . . . . . . . . . . . . . . 1 . . Extermination 9 | . . . . . . . . . . . 1 . . . . 1 . . . . 1 . 4 2 Reinforcement 8 | . . . . . . . . . . . . . . . . . . . . . 2 . 3 3 Assault 30 | . . . . . . . . . . . . . . . 1 2 . . . . . . 3 24 Garrison 1 | . . . . . . . . . . . . . . . . . . . . . . . 1 . Intercept . | . . . . . . . . . . . . . . . . . . . . . . . . . Searches Triggered . | . . . . . . . . . . . . . . . . . . . . . . . . . Construction Impeded 1 | . . . . . . . . . . . . . . . . . . . . . . . . 1 Haulers Reinforced 2 | . . . . . . . . . . . . . . . . . . . . . 2 . . . Active Scanning Responses . | . . . . . . . . . . . . . . . . . . . . . . . . . Cargo Convoy Interrupts . | . . . . . . . . . . . . . . . . . . . . . . . . . Stealth | -11 -10 -10 -10 -8 -6 -6 -6 -6 -6 -5 -5 -5 -5 -5 -4 -4 -4 -4 -4 -3 -3 -2 -2 -1 --------- Run | Yrd Mat Min Sub Scr Fac Low Low Zio Dee Pro Fac Upp Upp War Pro Fac Upp Upp Zhi Pro Res Res Qua Acc Distress Signals 13 | . 2 . . . . . . . . . 1 . . 1 . . . . . . 2 4 . 3 Communications Jammed 62 | . . . . . 1 . . . . . 2 . . . 1 . . . . . 47 . 10 1 Distress Signals 58 | . . . . . 1 . . . . . 2 . . . . . . . . . 44 . 10 1 Times Spotted 395 | . 13 4 14 . 5 12 5 . 14 5 5 11 . 71 19 3 4 6 . 4 15 19 42 124 Peak Tracking Total 18 | . 4 3 4 . 3 4 5 . 6 4 4 5 . 18 5 1 3 2 . 3 4 7 7 15 Tactical Retreats 10 | . 2 1 . . . 1 . . . . . . . . . . . . . . . . 2 4 Traps | -11 -10 -10 -10 -8 -6 -6 -6 -6 -6 -5 -5 -5 -5 -5 -4 -4 -4 -4 -4 -3 -3 -2 -2 -1 ------- Run | Yrd Mat Min Sub Scr Fac Low Low Zio Dee Pro Fac Upp Upp War Pro Fac Upp Upp Zhi Pro Res Res Qua Acc Traps Triggered 3 | . . . 2 . . . . . . . . . . . . . . . . . . . 1 . Indirectly . | . . . . . . . . . . . . . . . . . . . . . . . . . Trap Hack Attempts . | . . . . . . . . . . . . . . . . . . . . . . . . . Triggered . | . . . . . . . . . . . . . . . . . . . . . . . . . Disarmed . | . . . . . . . . . . . . . . . . . . . . . . . . . Reprogrammed . | . . . . . . . . . . . . . . . . . . . . . . . . . Reused . | . . . . . . . . . . . . . . . . . . . . . . . . . Traps Extracted . | . . . . . . . . . . . . . . . . . . . . . . . . . Installed . | . . . . . . . . . . . . . . . . . . . . . . . . . Triggered . | . . . . . . . . . . . . . . . . . . . . . . . . . Most Traps Carried 4 | . . . . . . 2 4 4 4 4 4 4 4 4 4 4 4 4 4 4 4 4 . . Machines | -11 -10 -10 -10 -8 -6 -6 -6 -6 -6 -5 -5 -5 -5 -5 -4 -4 -4 -4 -4 -3 -3 -2 -2 -1 ---------- Run | Yrd Mat Min Sub Scr Fac Low Low Zio Dee Pro Fac Upp Upp War Pro Fac Upp Upp Zhi Pro Res Res Qua Acc Machines Disabled 25 | . . . 3 . . 1 . 1 1 . 1 1 . 2 . 1 . . . . . 1 12 1 Max in Single Turn 1 | . . . 1 . . 1 . . 1 . 1 1 . 1 . 1 . . . . . 1 1 . Garrison Access 5 | . . . . . . . . . . . 1 . . . . 1 . . . . . 2 1 . Machines Repaired . | . . . . . . . . . . . . . . . . . . . . . . . . . Machines Dismantled . | . . . . . . . . . . . . . . . . . . . . . . . . . Machines Sabotaged . | . . . . . . . . . . . . . . . . . . . . . . . . . Overloaded Fab Kills . | . . . . . . . . . . . . . . . . . . . . . . . . . Hacking | -11 -10 -10 -10 -8 -6 -6 -6 -6 -6 -5 -5 -5 -5 -5 -4 -4 -4 -4 -4 -3 -3 -2 -2 -1 --------- Run | Yrd Mat Min Sub Scr Fac Low Low Zio Dee Pro Fac Upp Upp War Pro Fac Upp Upp Zhi Pro Res Res Qua Acc Machines Accessed 25 | . 4 . 2 . 1 1 . . . . 3 . . . . 3 . . 4 . 1 2 3 1 Terminals 8 | . 3 . . . 1 . . . . . 1 . . . . 1 . . . . 1 1 . . Fabricators 1 | . . . . . . . . . . . 1 . . . . . . . . . . . . . Repair Stations . | . . . . . . . . . . . . . . . . . . . . . . . . . Recycling Units 1 | . 1 . . . . . . . . . . . . . . . . . . . . . . . Scanalyzers 4 | . . . . . . . . . . . . . . . . 1 . . . . . . 3 . Garrison Access 4 | . . . . . . . . . . . 1 . . . . 1 . . . . . 1 . 1 Total Hacks 68 | . 7 . 5 . 1 1 . . . . 9 . . . . 15 . . 17 . 1 3 8 1 Successful 46 | . 3 . 5 . . 1 . . . . 9 . . . . 7 . . 17 . . 2 2 . Failed 22 | . 4 . . . 1 . . . . . . . . . . 8 . . . . 1 1 6 1 Catastrophic 5 | . 2 . . . 1 . . . . . . . . . . . . . . . 1 . 1 . Database Lockouts . | . . . . . . . . . . . . . . . . . . . . . . . . . Manual 16 | . 4 . . . . . . 4 . . 5 . . . . 2 . . . . . 1 . . Terminals 15 | . 6 . . . 1 . . . . . 2 . . . . 3 . . . . 1 2 . . Fabricators 6 | . . . . . . . . . . . 6 . . . . . . . . . . . . . Repair Stations . | . . . . . . . . . . . . . . . . . . . . . . . . . Recycling Units 1 | . 1 . . . . . . . . . . . . . . . . . . . . . . . Scanalyzers 18 | . . . . . . . . . . . . . . . . 10 . . . . . . 8 . Garrison Access 5 | . . . . . . . . . . . 1 . . . . 2 . . . . . 1 . 1 Terminal Hacks 27 | . 2 . 5 . . 1 . . . . 1 . . . . . . . 17 . . 1 . . Record 9 | . . . 4 . . . . . . . . . . . . . . . 5 . . . . . Part Schematic 4 | . . . . . . . . . . . . . . . . . . . 4 . . . . . Robot Analysis 5 | . 1 . . . . . . . . . . . . . . . . . 4 . . . . . Prototype ID Bank 4 | . . . . . . . . . . . . . . . . . . . 4 . . . . . Open Door 1 | . . . . . . 1 . . . . . . . . . . . . . . . . . . Open DSF 1 | . . . . . . . . . . . . . . . . . . . . . . 1 . . Locate Traps 1 | . 1 . . . . . . . . . . . . . . . . . . . . . . . Recall Extermination 1 | . . . . . . . . . . . 1 . . . . . . . . . . . . . Proto ID Catalog 1 | . . . 1 . . . . . . . . . . . . . . . . . . . . . Fabricator Hacks 2 | . . . . . . . . . . . 2 . . . . . . . . . . . . . Network Status 1 | . . . . . . . . . . . 1 . . . . . . . . . . . . . Build 1 | . . . . . . . . . . . 1 . . . . . . . . . . . . . Repair Station Hacks . | . . . . . . . . . . . . . . . . . . . . . . . . . Recycling Unit Hacks 1 | . 1 . . . . . . . . . . . . . . . . . . . . . . . Report Inventory 1 | . 1 . . . . . . . . . . . . . . . . . . . . . . . Scanalyzer 9 | . . . . . . . . . . . . . . . . 7 . . . . . . 2 . Insert Component 3 | . . . . . . . . . . . . . . . . 3 . . . . . . . . Analyze 1 | . . . . . . . . . . . . . . . . 1 . . . . . . . . Retrieve Study 5 | . . . . . . . . . . . . . . . . 3 . . . . . . 2 . Garrison Access Hacks 1 | . . . . . . . . . . . 1 . . . . . . . . . . . . . Seal Access 1 | . . . . . . . . . . . 1 . . . . . . . . . . . . . Unauthorized Hacks 6 | . . . . . . . . . . . 5 . . . . . . . . . . 1 . . Terminals 1 | . . . . . . . . . . . 1 . . . . . . . . . . . . . Botnet 1 | . . . . . . . . . . . 1 . . . . . . . . . . . . . Fabricators 4 | . . . . . . . . . . . 4 . . . . . . . . . . . . . Prioritize 1 | . . . . . . . . . . . 1 . . . . . . . . . . . . . Liberate 1 | . . . . . . . . . . . 1 . . . . . . . . . . . . . Fabnet 1 | . . . . . . . . . . . 1 . . . . . . . . . . . . . Haulers 1 | . . . . . . . . . . . 1 . . . . . . . . . . . . . Repair Stations . | . . . . . . . . . . . . . . . . . . . . . . . . . Recycling Units . | . . . . . . . . . . . . . . . . . . . . . . . . . Scanalyzers . | . . . . . . . . . . . . . . . . . . . . . . . . . Garrison Access 1 | . . . . . . . . . . . . . . . . . . . . . . 1 . . Jam 1 | . . . . . . . . . . . . . . . . . . . . . . 1 . . Data Cores Recovered 1 | . . . . . . . . . . . . . . . . . . . . . 1 . . . Used . | . . . . . . . . . . . . . . . . . . . . . . . . . Hacking Detections 15 | . 3 . . . 1 . . . . . 2 . . . . 3 . . . . 1 1 3 1 Full Trace Events . | . . . . . . . . . . . . . . . . . . . . . . . . . Feedback Events . | . . . . . . . . . . . . . . . . . . . . . . . . . Feedback Blocked . | . . . . . . . . . . . . . . . . . . . . . . . . . Robot Schematics Acquired 5 | . . . . . . . . 4 . . . . . . . . . . . . . . 1 . Robots Built . | . . . . . . . . . . . . . . . . . . . . . . . . . Authchips . | . . . . . . . . . . . . . . . . . . . . . . . . . Time . | . . . . . . . . . . . . . . . . . . . . . . . . . Total Robot Build Rating . | . . . . . . . . . . . . . . . . . . . . . . . . . Part Schematics Acquired 21 | . . . . . . . . 13 . . . . . . . 1 . . 4 . . . 3 . Parts Built 1 | . . . . . . . . . . . 1 . . . . . . . . . . . . . Authchips . | . . . . . . . . . . . . . . . . . . . . . . . . . Time 139 | . . . . . . . . . . . 139 . . . . . . . . . . . . . Total Part Build Rating 9 | . . . . . . . . . . . 9 . . . . . . . . . . . . . Part Studies Acquired 5 | . . . . . . . . . . . . . . . . 3 . . . . . . 2 . Parts Repaired . | . . . . . . . . . . . . . . . . . . . . . . . . . Time . | . . . . . . . . . . . . . . . . . . . . . . . . . Parts Recycled . | . . . . . . . . . . . . . . . . . . . . . . . . . Recycled Matter . | . . . . . . . . . . . . . . . . . . . . . . . . . Retrieved Matter . | . . . . . . . . . . . . . . . . . . . . . . . . . Retrieved Components . | . . . . . . . . . . . . . . . . . . . . . . . . . Parts Scanalyzed 1 | . . . . . . . . . . . . . . . . 1 . . . . . . . . Part Schematics Acquired 1 | . . . . . . . . . . . . . . . . 1 . . . . . . . . Parts Damaged . | . . . . . . . . . . . . . . . . . . . . . . . . . Bothacking | -11 -10 -10 -10 -8 -6 -6 -6 -6 -6 -5 -5 -5 -5 -5 -4 -4 -4 -4 -4 -3 -3 -2 -2 -1 ------------ Run | Yrd Mat Min Sub Scr Fac Low Low Zio Dee Pro Fac Upp Upp War Pro Fac Upp Upp Zhi Pro Res Res Qua Acc Used RIF Installer . | . . . . . . . . . . . . . . . . . . . . . . . . . Robots Hacked 11 | . . . . . . 1 . 1 1 . 1 . . . 3 . . . . . . 4 . . Non-combat 1 | . . . . . . . . . . . 1 . . . . . . . . . . . . . Combat 10 | . . . . . . 1 . 1 1 . . . . . 3 . . . . . . 4 . . Robot Hacks Applied 9 | . . . . . . 1 . 2 1 . 1 . . . . . . . . . . 4 . . parse_system 8 | . . . . . . 1 . 2 1 . . . . . . . . . . . . 4 . . find_chute 1 | . . . . . . . . . . . 1 . . . . . . . . . . . . . Relay Couplers Released 10 | . . . . . . . . . . . 4 . . . . 1 . . . . . 2 3 . Machine Destruction 10 | . . . . . . . . . . . 4 . . . . 1 . . . . . 2 3 . Fabnet Peak Effective % 3 | . . . . . . . . . . . . . . . 3 3 3 3 3 1 1 . . . Autooverrided 3 | . . . . . . . . . . . . . . . 3 . . . . . . . . . Robots Rewired 2 | . . . . . . . . . . . . 1 . . 1 . . . . . . . . . Allies Hacked 15 | . . . . . . . . . . 1 . . . 1 . . . 1 . . 1 . 6 5 Hacks Repelled 6 | . . . . . . . . . . . . . . . . . . 1 . . . 1 4 . Allies | -11 -10 -10 -10 -8 -6 -6 -6 -6 -6 -5 -5 -5 -5 -5 -4 -4 -4 -4 -4 -3 -3 -2 -2 -1 -------- Run | Yrd Mat Min Sub Scr Fac Low Low Zio Dee Pro Fac Upp Upp War Pro Fac Upp Upp Zhi Pro Res Res Qua Acc Total Allies 9 | . . . . . . . . . . . 3 1 . . 4 . . . . . . . . 1 Largest Group 3 | . . . . . . . . . . . 3 1 . . 1 1 . . . . . . . . Highest-Rated Group 90 | . . . . . . . . . . . 90 30 . . 47 47 . . . . . . . . Highest-Rated Ally 47 | . . . . . . . . . . . 30 30 . . 47 47 . . . . . . . . Total Orders 184 | . . . . . . 8 14 35 33 13 2 . . 2 9 3 12 2 2 4 4 18 12 11 STAY 64 | . . . . . . 4 6 9 17 3 1 . . 1 3 1 4 1 1 2 1 4 3 3 ROAM 7 | . . . . . . . . . . . . . . . . . . . . . . 3 2 2 FOLLOW 53 | . . . . . . 4 5 10 12 4 1 . . 1 1 1 3 1 1 2 1 3 3 . DROP 23 | . . . . . . . 1 7 2 3 . . . . 2 . 3 . . . . 4 1 . PICKUP 19 | . . . . . . . 1 3 2 3 . . . . 3 . 2 . . . . 4 1 . COLLECT 7 | . . . . . . . 1 6 . . . . . . . . . . . . . . . . EXPLORE 5 | . . . . . . . . . . . . . . . . . . . . . . . . 5 RETURN 6 | . . . . . . . . . . . . . . . . 1 . . . . 2 . 2 1 Ally Attacks 1445 | . . . . . 24 77 42 24 87 47 48 58 . 165 92 14 28 31 . 18 95 109 209 277 Total Damage 47621 | . . . . . 411 1117 985 391 1478 767 685 1049 . 3787 1800 329 651 871 . 556 2449 3122 9897 17276 Kills 213 | . . . . . 3 6 6 2 8 5 7 7 . 24 16 2 3 5 . 2 14 6 40 57 Allies Corrupted 4 | . . . . . . . . . . . . . . . 1 1 . . . . . 1 1 . Allies Melted 4 | . . . . . . . . . . . . . . 1 . . . . . . . 3 . . Borg Created 33 | . . . . . 3 6 2 . 1 1 . 2 . . . 1 . . . . . 2 8 7 Largest Collective 6 | . . . . . 2 6 6 . 5 5 . 6 . . . 6 . . . . . 6 5 2 Intel | -11 -10 -10 -10 -8 -6 -6 -6 -6 -6 -5 -5 -5 -5 -5 -4 -4 -4 -4 -4 -3 -3 -2 -2 -1 ------- Run | Yrd Mat Min Sub Scr Fac Low Low Zio Dee Pro Fac Upp Upp War Pro Fac Upp Upp Zhi Pro Res Res Qua Acc Active Infowar (turns) 17655 | 39 532 722 958 . 300 1853 1197 . . 985 115 1049 768 519 1301 443 1015 857 260 706 549 1149 1558 780 Sensors 11129 | . . . . . . 213 . . . 985 87 997 768 518 1295 404 1015 831 260 691 503 1149 757 656 Terrain 942 | . . . . . 152 . . . . . . . . . . . . . . . 208 582 . . Structural 3717 | . . . 368 . 299 1853 1197 . . . . . . . . . . . . . . . . . Seismic 1883 | 39 532 722 590 . . . . . . . . . . . . . . . . . . . . . Cloaking 1 | . . . . . . . . . . . . . . 1 . . . . . . . . . . Jamming 5325 | . . . . . 300 66 . . . . 28 52 . . 379 87 974 26 . 319 549 1089 1176 280 Robot Analysis Total 5 | . 1 . . . . . . . . . . . . . . . . . 4 . . . . . Derelict Logs Recovered 20 | . . 3 2 5 . 1 2 . . 1 . 3 . . . . 2 1 . . . . . . Drone Launches 33 | . . . . . . . . . . . . . . . . 4 . . . . 2 . 4 23 Drone Recoveries 23 | . . . . . . . . . . . . . . . . 4 . . . . 2 . 4 13 Exploration | -11 -10 -10 -10 -8 -6 -6 -6 -6 -6 -5 -5 -5 -5 -5 -4 -4 -4 -4 -4 -3 -3 -2 -2 -1 ------------- Run | Yrd Mat Min Sub Scr Fac Low Low Zio Dee Pro Fac Upp Upp War Pro Fac Upp Upp Zhi Pro Res Res Qua Acc Turns Passed 31073 | 117 532 875 2480 2226 303 1928 1826 3356 2918 1028 687 1175 768 1633 1436 465 1015 857 260 706 549 1149 1558 1226 Spaces Moved 15075 | 75 268 674 1314 1083 156 934 749 1445 1340 450 325 594 413 755 652 226 526 467 150 418 279 569 850 363 Core 14 | 13 . . . . . . . 1 . . . . . . . . . . . . . . . . Treads 246 | . . . 181 . . . . . . . . . . . . . . . . . . 5 . 60 Legs . | . . . . . . . . . . . . . . . . . . . . . . . . . Wheels 14815 | 62 268 674 1133 1083 156 934 749 1444 1340 450 325 594 413 755 652 226 526 467 150 418 279 564 850 303 Hover . | . . . . . . . . . . . . . . . . . . . . . . . . . Flight . | . . . . . . . . . . . . . . . . . . . . . . . . . Fastest Speed 50 | 50 100 115 105 195 165 165 185 190 185 200 165 165 180 180 195 161 146 161 161 161 150 147 139 139 Average Speed 176 | 91 123 118 151 203 165 185 198 206 200 202 172 178 180 189 198 176 160 161 161 161 150 155 145 164 Slowest Speed 4800 | 100 130 130 210 210 165 195 200 4800 250 435 200 180 180 195 525 195 161 161 161 161 161 275 166 365 Overloaded Moves . | . . . . . . . . . . . . . . . . . . . . . . . . . Propulsion Burnouts . | . . . . . . . . . . . . . . . . . . . . . . . . . Robots Hopped . | . . . . . . . . . . . . . . . . . . . . . . . . . Potential Cave-ins . | . . . . . . . . . . . . . . . . . . . . . . . . . Cave-ins Triggered . | . . . . . . . . . . . . . . . . . . . . . . . . . Exploration Rate (%) 55 | 4 41 97 83 53 5 84 77 87 83 69 8 73 66 78 76 4 74 63 60 57 10 40 72 16 Regions Visited 24 Branch Regions 17 Pre-discovered Areas 12 | . . 2 1 3 . . . 2 . . . . . . . . 1 . 3 . . . . . Known Exits Taken 15 | . . . . . 1 . . . . 1 1 1 1 1 1 1 1 1 1 1 1 1 1 . Unknown Exits Taken 9 | 1 1 1 1 1 . 1 1 1 1 . . . . . . . . . . . . . . . Scrap Searched 37 | . . 1 6 2 . 3 3 4 . 4 . 1 4 . 3 . 2 2 . 2 . . . . Spaces Dug 98 | . . . 20 . . 2 2 . 6 22 8 3 . 6 3 . 1 11 . . 4 2 8 . Terrain Destroyed 288 | . . . 37 . . 2 2 . 47 22 13 9 . 6 6 3 1 14 . 1 12 24 9 80 Melee 11 | . . . . . . 2 2 . . . . . . . . . . . . . . 1 6 . Projectile 90 | . . . 10 . . . . . . . 13 9 . 6 6 3 1 14 . 1 12 2 3 10 AOE 187 | . . . 27 . . . . . 47 22 . . . . . . . . . . . 21 . 70 Terrain Rammed . | . . . . . . . . . . . . . . . . . . . . . . . . . Walls Destroyed . | . . . . . . . . . . . . . . . . . . . . . . . . . Machines Disabled . | . . . . . . . . . . . . . . . . . . . . . . . . . Actions | -11 -10 -10 -10 -8 -6 -6 -6 -6 -6 -5 -5 -5 -5 -5 -4 -4 -4 -4 -4 -3 -3 -2 -2 -1 --------- Run | Yrd Mat Min Sub Scr Fac Low Low Zio Dee Pro Fac Upp Upp War Pro Fac Upp Upp Zhi Pro Res Res Qua Acc Total 18833 | 102 427 718 1687 1106 185 1101 1052 1827 1556 562 438 683 435 925 782 282 692 558 167 446 384 818 1081 819 Wait 2567 | 5 120 19 221 . . 103 264 330 133 102 83 45 19 94 89 32 157 72 . 20 60 169 135 295 Move 15050 | 74 267 673 1313 1082 155 933 748 1444 1339 449 324 593 412 754 651 225 525 466 149 417 278 568 849 362 Hop . | . . . . . . . . . . . . . . . . . . . . . . . . . Pick Up 171 | 7 7 4 38 9 10 14 2 9 13 . 1 2 . 5 2 2 . . 2 1 4 16 9 14 Fast Attach 86 | 6 2 1 . . 1 1 5 9 18 3 1 . 1 6 3 1 3 . 6 . . 5 6 8 Attach 65 | 1 . . 6 3 5 1 1 4 4 . 4 . . . 2 1 . . . . 3 7 3 20 Detach 24 | . 2 . . 1 . 1 1 3 . . 2 . . . 1 1 . . . . 1 1 2 8 Swap 126 | . 2 4 14 3 3 10 5 5 8 2 4 8 . 4 7 8 . 2 . 3 11 8 11 4 Drop 196 | . 4 1 17 8 2 19 7 20 26 3 1 . . 15 5 3 3 . 7 1 2 23 16 13 Fire 385 | 9 23 16 78 . . . . . 6 2 17 23 3 47 16 7 4 17 3 3 24 18 6 63 Melee 92 | . . . . . 6 13 17 3 7 . 1 . . . . . . . . . . 1 27 17 Ram 1 | . . . . . . . . . . . . . . . . 1 . . . . . . . . Kick . | . . . . . . . . . . . . . . . . . . . . . . . . . Crush . | . . . . . . . . . . . . . . . . . . . . . . . . . Escape Stasis 4 | . . . . . . . . . . . . . . . . . . . . . . . . 4 Rewire 20 | . . . . . . . . . . . . 10 . . 6 . . 1 . . . . 2 1 Trap . | . . . . . . . . . . . . . . . . . . . . . . . . . Miscellaneous 46 | . . . . . 3 6 2 . 2 1 . 2 . . . 1 . . . 1 1 2 15 10 Route ------- -11/Scrapyard -10/Materials (discovered 2 exits: [*Mat] / [*Min]) -10/Mines (discovered 3 exits: [*Mat x2] / *Sub) -10/Subcaves (discovered 3 exits: [*Mat] / Rec / *Scr) -8/Scraptown -6/Factory (discovered 4 exits: Fac x2 / *Low x2) -6/Lower Caves -6/Lower Caves (discovered 2 exits: *Fac / *Zio) -6/Zion (discovered 2 exits: [*Dee] / [*Pro]) -6/Deep Caves -5/Proximity Caves -5/Factory (discovered 4 exits: Fac / *Upp / *Ext x2) -5/Upper Caves -5/Upper Caves -5/Warlord -4/Proximity Caves -4/Factory -4/Upper Caves -4/Upper Caves -4/Zhirov -3/Proximity Caves -3/Research (discovered 2 exits: *Res / Arm) -2/Research -2/Quarantine -1/Access To Epsilon Eridani History --------- Turn | Location | Event 5 | -11/Scrapyard | Discovered new exit (range 15) 118 | -11/Scrapyard | Entered Materials 306 | -10/Materials | Build established: Mutant 354 | -10/Materials | Discovered new exit (range 9) 498 | -10/Materials | Discovered new exit (range 16) 650 | -10/Materials | Entered Mines 752 | -10/Mines | Learned Materials terminal intel 772 | -10/Mines | Discovered new exit (range 5) 801 | -10/Mines | Learned location of Zion (-6) 829 | -10/Mines | Received a Rocket Launcher from a helpful Derelict 1071 | -10/Mines | A weapon hastily lodged in a ceiling crevice suddenly fell to the ground 1122 | -10/Mines | Discovered new exit (range 6) 1211 | -10/Mines | Discovered new exit (range 7) 1249 | -10/Mines | Learned location of Storage (-8) 1525 | -10/Mines | Entered Subcaves 1526 | -10/Subcaves | Approached by a straggling Scientist 1529 | -10/Subcaves | Identified exit to Recycling 1732 | -10/Subcaves | A swath of the cavern ceiling suddenly collapsed 2112 | -10/Subcaves | A Subdweller sparked back to life 2112 | -10/Subcaves | A Subdweller sparked back to life 2156 | -10/Subcaves | Found Prototype Device 2326 | -10/Subcaves | Scientist uncovered a shortcut to Scraptown 2344 | -10/Subcaves | Visited Clippyterm 2347 | -10/Subcaves | Learned 40 Factory zone layouts 2347 | -10/Subcaves | Learned Factory stockpile data 2446 | -10/Subcaves | Build established: Scavenger-Mutant 2499 | -10/Subcaves | Visited 4L-MR0's lab 2504 | -10/Subcaves | Identified Power Bank 2555 | -10/Subcaves | Found Powered Cannon 2559 | -10/Subcaves | Found Prototype Special Melee Weapon 2821 | -10/Subcaves | Build established: Hauler-Mutant 3474 | -10/Subcaves | Discovered new exit (range 5) 3508 | -10/Subcaves | Disturbed a concealed Subdweller 3514 | -10/Subcaves | Core integrity fell below 50% 3534 | -10/Subcaves | Core integrity fell below 20% 4005 | -10/Subcaves | Entered Scraptown 4297 | -8/Scraptown | Scanned Subdweller tech in exchange for log data 4302 | -8/Scraptown | Learned location of Testing (-3) 4304 | -8/Scraptown | Learned Research stockpile data 4308 | -8/Scraptown | Learned location of Extension (-5) 4346 | -8/Scraptown | Heard Great Nut preacher, LISTEN AND RECITE! 4404 | -8/Scraptown | Visited CR-KLE's Repair Center 4434 | -8/Scraptown | Visited SPCMW 4474 | -8/Scraptown | Visited Fellowship of the Rings 4539 | -8/Scraptown | Visited Cyclists 4562 | -8/Scraptown | Visited Symbiants 4671 | -8/Scraptown | Visited Assassins FH 5692 | -8/Scraptown | Discovered new exit (range 11) 6032 | -8/Scraptown | CR-KLE repaired 5 parts 6231 | -8/Scraptown | Entered Factory 6231 | -6/Factory | Evolved 8 slots: Propulsion x1, Utility x3, Weapon x4 6232 | -6/Factory | Identified exit to Factory 6232 | -6/Factory | Identified exit to Lower Caves 6232 | -6/Factory | Identified 1B-0RG's Assimilator 6306 | -6/Factory | Assimilating Excavator 5a into Collective. 6383 | -6/Factory | Assimilating Veteran 5a into Collective. 6388 | -6/Factory | Assimilating Soldier 5a into Collective. 6518 | -6/Factory | Discovered exit to Lower Caves (range 5) 6534 | -6/Factory | Entered Lower Caves 6534 | -6/Lower Caves | Accompanied by 1 ally 6787 | -6/Lower Caves | Assimilating KM-ZK5(S) into Collective. 6826 | -6/Lower Caves | Assimilating Fighter 5a into Collective. 6834 | -6/Lower Caves | Assimilating Soldier 5b into Collective. 7170 | -6/Lower Caves | Learned location of 1 exit from Factory 7184 | -6/Lower Caves | Attacked by a delusional Derelict stockpiling parts 7184 | -6/Lower Caves | Assimilating QB-BHP(M) into Collective. 7463 | -6/Lower Caves | Discovered new exit (range 12) 7494 | -6/Lower Caves | Assimilating Fighter 5b into Collective. 7645 | -6/Lower Caves | Encountered a Warlord checkpoint 7762 | -6/Lower Caves | Assimilating 4D-EUP(M) into Collective. 8462 | -6/Lower Caves | Entered another Lower Caves area 8462 | -6/Lower Caves | Accompanied by 6 allies 8499 | -6/Lower Caves | Learned 12 Factory zone layouts 8607 | -6/Lower Caves | Assimilating Analyst 5a into Collective. 8617 | -6/Lower Caves | Found Alien Artifact 8617 | -6/Lower Caves | Identified Core Expander 8617 | -6/Lower Caves | Installed Core Expander, added new Utility slot 8784 | -6/Lower Caves | Discovered exit to Factory (range 4) 9632 | -6/Lower Caves | Assimilating Conveyor 5a into Collective. 10009 | -6/Lower Caves | Learned Factory non-interactive machine intel 10114 | -6/Lower Caves | Encountered a Warlord checkpoint 10115 | -6/Lower Caves | Discovered new exit (range 10) 10288 | -6/Lower Caves | Entered Zion 10288 | -6/Zion | Accompanied by 6 allies 10500 | -6/Zion | Found GAL Module 10543 | -6/Zion | Acquired unknown access codes intercepted by a Zionite 10557 | -6/Zion | Discovered new exit (range 15) 10675 | -6/Zion | Given the Hacking Drone Bay 10680 | -6/Zion | Found Prototype Device 10681 | -6/Zion | Identified Hacking Drone Bay 10779 | -6/Zion | Learned location of Warlord (-5) 10946 | -6/Zion | Found CR-A16's Pointy Stick 11069 | -6/Zion | Learned location of Armory (-3) 11282 | -6/Zion | Found Prototype Special Weapon 11282 | -6/Zion | Identified RU-N14's Throwing Claymores 11529 | -6/Zion | Opened final containment barrier to the Deep Caves 11792 | -6/Zion | Met Imprinter 13032 | -6/Zion | Found Prototype Launcher 13032 | -6/Zion | Identified Rocket Array 13037 | -6/Zion | Found Rocket Array 13621 | -6/Zion | Discovered new exit (range 6) 13626 | -6/Zion | Saw the warning signs outside the Deep Caves entrance 13644 | -6/Zion | Entered Deep Caves 13644 | -6/Deep Caves | Accompanied by 6 allies 13900 | -6/Deep Caves | Attacked by Z-Imprinter 13921 | -6/Deep Caves | Attached CPS modules to Z-Imprinter. 13930 | -6/Deep Caves | Allies destroyed Z-Imprinter 13955 | -6/Deep Caves | Found Prototype Protection 13955 | -6/Deep Caves | Identified Zio. Weapon Casing 13963 | -6/Deep Caves | Found Prototype Device 13963 | -6/Deep Caves | Identified Zio. Metafield Generator 14128 | -6/Deep Caves | Found RU-N14's Throwing Claymores 14201 | -6/Deep Caves | Attached Power Bank, gained temporary slots: Power x3 14494 | -6/Deep Caves | Z-Facility disabled 14498 | -6/Deep Caves | Assimilating ML-Q27(z) into Collective. 14520 | -6/Deep Caves | Found Zio. Weapon Casing 14523 | -6/Deep Caves | Found Zio. Weapon Casing 14611 | -6/Deep Caves | Found Prototype Protection 14611 | -6/Deep Caves | Identified Zio. Heavy Carapace 15256 | -6/Deep Caves | Discovered new exit (range 14) 16274 | -6/Deep Caves | Found Zio. Weapon Casing 16309 | -6/Deep Caves | Found Zio. Weapon Casing 16562 | -6/Deep Caves | Entered Proximity Caves 16562 | -5/Proximity Caves | Accompanied by 4 allies 16739 | -5/Proximity Caves | Learned Factory garrison access intel 16901 | -5/Proximity Caves | Assimilating Fighter 6a into Collective. 17345 | -5/Proximity Caves | Discovered exit to Factory (range 7) 17590 | -5/Proximity Caves | Entered Factory 17590 | -5/Factory | Accompanied by 5 allies 17590 | -5/Factory | Evolved 2 slots: Propulsion x1, Weapon x1 17591 | -5/Factory | Identified exit to Extension 17592 | -5/Factory | Identified exit to Factory 17594 | -5/Factory | Loaded intel: 224 non-interactive machine locations 17595 | -5/Factory | Loaded intel: 4 garrison access locations 17663 | -5/Factory | Attached Powered Cannon, gained temporary slot: Power 17811 | -5/Factory | Discovered new exit (range 14) 17872 | -5/Factory | Fabricated Adv. Heavy Siege Treads (x1) 17995 | -5/Factory | Identified exit to Upper Caves 18277 | -5/Factory | Entered Upper Caves 18277 | -5/Upper Caves | Accompanied by 6 allies 18281 | -5/Upper Caves | Learned Factory interactive machine intel 18328 | -5/Upper Caves | Assimilating Fighter 6b into Collective. 18982 | -5/Upper Caves | Attracted the attention of an 0b10 checkpoint 19155 | -5/Upper Caves | Discovered new exit (range 3) 19158 | -5/Upper Caves | Identified exit to Upper Caves 19271 | -5/Upper Caves | Learned Factory terminal intel 19333 | -5/Upper Caves | Attracted the attention of an 0b10 outpost 19363 | -5/Upper Caves | Assimilating Sentinel 6a into Collective. 19452 | -5/Upper Caves | Entered another Upper Caves area 19452 | -5/Upper Caves | Accompanied by 6 allies 19453 | -5/Upper Caves | Identified exit to Warlord 19590 | -5/Upper Caves | Encountered a Warlord checkpoint 19620 | -5/Upper Caves | Found DCF Scrap (13 items) 20220 | -5/Upper Caves | Entered Warlord 20220 | -5/Warlord | Accompanied by 6 allies 20520 | -5/Warlord | Found Prototype Energy Gun 20731 | -5/Warlord | Found Prototype Reactor 20731 | -5/Warlord | Identified Vortex Chain Reactor 20739 | -5/Warlord | Found Prototype Device 20739 | -5/Warlord | Identified Exp. Cloaking Device 20771 | -5/Warlord | Found Prototype Processor 20771 | -5/Warlord | Identified Exp. Target Analyzer 20798 | -5/Warlord | Found Prototype Device 20799 | -5/Warlord | Identified Minesniffer Drone Bay 20945 | -5/Warlord | Visited the Vortex Lab 20956 | -5/Warlord | Warlord's base attacked by MAIN.C 20956 | -5/Warlord | Found Prototype Energy Gun 20960 | -5/Warlord | Found Prototype Energy Gun 21091 | -5/Warlord | Met Warlord 21306 | -5/Warlord | Warlord forces counterattacked 21347 | -5/Warlord | Spotted Striker 21357 | -5/Warlord | Allies destroyed Striker 21402 | -5/Warlord | Spotted Executioner 21413 | -5/Warlord | Allies destroyed Executioner 21451 | -5/Warlord | Lost 6 allies 21504 | -5/Warlord | Lost 3 allies 21631 | -5/Warlord | Warlord base infiltrated, sounded retreat 21632 | -5/Warlord | Enhanced Grunt warped into view 21632 | -5/Warlord | Enhanced Grunt warped into view 21632 | -5/Warlord | Enhanced Grunt warped into view 21632 | -5/Warlord | Enhanced Demolisher warped into view 21632 | -5/Warlord | Enhanced Demolisher warped into view 21632 | -5/Warlord | Enhanced Demolisher warped into view 21636 | -5/Warlord | Spotted Striker 21653 | -5/Warlord | Spotted B-75 Beast 21683 | -5/Warlord | Lost 4 allies 21759 | -5/Warlord | Lost 5 allies 21767 | -5/Warlord | Spotted Executioner 21799 | -5/Warlord | Lost 4 allies 21800 | -5/Warlord | Discovered new exit (range 13) 21819 | -5/Warlord | Identified exit to Proximity Caves 21853 | -5/Warlord | Entered Proximity Caves 21853 | -4/Proximity Caves | Accompanied by 6 allies 22089 | -4/Proximity Caves | Build established: Generator-Mutant 22146 | -4/Proximity Caves | Attracted the attention of an 0b10 checkpoint 22632 | -4/Proximity Caves | Attracted the attention of an 0b10 outpost 22775 | -4/Proximity Caves | Discovered exit to Factory (range 5) 22972 | -4/Proximity Caves | Build established: Hauler-Mutant 23289 | -4/Proximity Caves | Entered Factory 23289 | -4/Factory | Accompanied by 6 allies 23289 | -4/Factory | Evolved 2 slots: Propulsion x1, Utility x1 23290 | -4/Factory | Loaded intel: 54 interactive machine locations 23291 | -4/Factory | Loaded intel: 26 terminal locations 23328 | -4/Factory | Discovered new exit (range 12) 23379 | -4/Factory | Identified Plasma Storm 23379 | -4/Factory | Identified Vortex Rifle (x2) 23488 | -4/Factory | Identified exit to Upper Caves 23652 | -4/Factory | Assimilating Sage 7a into Collective. 23754 | -4/Factory | Entered Upper Caves 23754 | -4/Upper Caves | Accompanied by 6 allies 23902 | -4/Upper Caves | Learned location of Quarantine (-2) 24458 | -4/Upper Caves | Learned location of 1 exit from Research 24466 | -4/Upper Caves | Discovered new exit (range 11) 24556 | -4/Upper Caves | Identified exit to Upper Caves 24769 | -4/Upper Caves | Entered another Upper Caves area 24769 | -4/Upper Caves | Accompanied by 6 allies 24981 | -4/Upper Caves | Learned location of 1 exit from Proximity Caves 25321 | -4/Upper Caves | Attracted the attention of an 0b10 checkpoint 25377 | -4/Upper Caves | Discovered new exit (range 7) 25522 | -4/Upper Caves | Identified exit to Zhirov 25626 | -4/Upper Caves | Entered Zhirov 25626 | -4/Zhirov | Accompanied by 6 allies 25626 | -4/Zhirov | Discovered new exit (range 3) 25628 | -4/Zhirov | Identified exit to Proximity Caves 25655 | -4/Zhirov | Met Zhirov 25686 | -4/Zhirov | Learned location of Command (-1) 25701 | -4/Zhirov | Zhirov requested help retrieving the SGEMP Prototype 25727 | -4/Zhirov | Found Alien Artifact 25727 | -4/Zhirov | Identified Integrated Reactor 25727 | -4/Zhirov | Installed Integrated Reactor, increased core energy generation (+10) 25827 | -4/Zhirov | Found Alien Artifact 25886 | -4/Zhirov | Entered Proximity Caves 25886 | -3/Proximity Caves | Accompanied by 6 allies 25887 | -3/Proximity Caves | Identified exit to Research 25905 | -3/Proximity Caves | Found Relay Coupler [Programmer] 26020 | -3/Proximity Caves | Build established: Generator-Mutant 26592 | -3/Proximity Caves | Entered Research 26592 | -3/Research | Accompanied by 5 allies 26592 | -3/Research | Evolved 2 slots: Propulsion x1, Utility x1 26593 | -3/Research | Identified exit to Armory 27101 | -3/Research | Discovered new exit (range 18) 27139 | -3/Research | Identified exit to Research 27141 | -3/Research | Entered another Research area 27141 | -2/Research | Accompanied by 5 allies 27141 | -2/Research | Warlord forces began assault on 0b10 27203 | -2/Research | Assimilating Conveyor 9a into Collective. 27251 | -2/Research | Research machine network offline 27285 | -2/Research | Spotted B-90 Cyclops 27302 | -2/Research | Allies destroyed B-90 Cyclops 27306 | -2/Research | Build established: Generator-Assassin 27312 | -2/Research | Attached CPS modules to EM-T1L(T). 27349 | -2/Research | Lost 4 allies 27453 | -2/Research | Attached CPS modules to X9-VAO(T). 27458 | -2/Research | Borebot progress halted 27459 | -2/Research | Discovered new exit (range 44) 27550 | -2/Research | Met up with Warlord 27600 | -2/Research | Spotted Striker 27603 | -2/Research | Spotted Executioner 27619 | -2/Research | Spotted Striker 27627 | -2/Research | Spotted Striker 27667 | -2/Research | Borebot progress halted 27687 | -2/Research | Lost 8 allies 27732 | -2/Research | Found Prototype Processor 27732 | -2/Research | Identified Exp. Core Analyzer 27733 | -2/Research | Spotted Striker 27733 | -2/Research | Spotted Executioner 27743 | -2/Research | Destroyed Executioner 27747 | -2/Research | Borebot progress halted 27801 | -2/Research | Met DD-05H 27805 | -2/Research | Assimilating Director 9a into Collective. 27816 | -2/Research | Found Megatreads 27826 | -2/Research | Found Prototype Device 27876 | -2/Research | Found Megatreads 27937 | -2/Research | Lost 3 allies 28000 | -2/Research | Build established: Generator-Mutant 28090 | -2/Research | Spotted Striker 28094 | -2/Research | Spotted Striker 28104 | -2/Research | Allies destroyed Striker 28114 | -2/Research | Spotted Striker 28120 | -2/Research | Destroyed Striker 28141 | -2/Research | Warlord invited to help at Command 28141 | -2/Research | Given Cave Seal Controls access code 28178 | -2/Research | Identified exit to Quarantine 28290 | -2/Research | Entered Quarantine 28290 | -2/Quarantine | Accompanied by 4 allies 28395 | -2/Quarantine | Found Alien Slashing Weapon 28395 | -2/Quarantine | Identified Sigix Broadsword 28512 | -2/Quarantine | Assimilating Conveyor 9b into Collective. 28678 | -2/Quarantine | Spotted Alpha 7 28709 | -2/Quarantine | Allies destroyed Alpha 7 28747 | -2/Quarantine | Found Alien Artifact 28831 | -2/Quarantine | Assimilating Conveyor 9c into Collective. 28934 | -2/Quarantine | Found Alien Artifact 29028 | -2/Quarantine | Build established: Hauler-Mutant 29069 | -2/Quarantine | Assimilating Enforcer 9a into Collective. 29080 | -2/Quarantine | Assimilating Enforcer 9b into Collective. 29168 | -2/Quarantine | Assimilating Eye 9a into Collective. 29194 | -2/Quarantine | Assimilating Processor 9a into Collective. 29236 | -2/Quarantine | Cryocooling Duct disabled 29251 | -2/Quarantine | Ambient heat levels rising (+20) 29251 | -2/Quarantine | Non-combat units ordered to evacuate 29301 | -2/Quarantine | Assimilating Terminator 9a into Collective. 29501 | -2/Quarantine | Identified exit to Access 29695 | -2/Quarantine | Assimilating Swordsman 9a into Collective. 29790 | -2/Quarantine | First assault squad dispatched 29801 | -2/Quarantine | Cryocooling Duct disabled 29816 | -2/Quarantine | Ambient heat levels rising (+20) 29816 | -2/Quarantine | Combat units ordered to evacuate 29848 | -2/Quarantine | Entered Access 29848 | -1/Access | Accompanied by 3 allies 29848 | -1/Access | Evolved 2 slots: Power x1, Utility x1 30074 | -1/Access | Spotted B-99 Colossus 30098 | -1/Access | First assault squad dispatched 30142 | -1/Access | Build established: Generator-Mutant 30148 | -1/Access | Spotted B-99 Colossus 30237 | -1/Access | Assimilating Eye 10a into Collective. 30262 | -1/Access | Assimilating Director 10a into Collective. 30301 | -1/Access | Discovered new exit (range 5) 30307 | -1/Access | Identified exit to Surface 30373 | -1/Access | Assimilating Master 10a into Collective. 30430 | -1/Access | High security lockdown imminent 30510 | -1/Access | High security lockdown engaged 30625 | -1/Access | Identified Vortex Field Projector 30706 | -1/Access | Assimilating Archangel 10a into Collective. 30772 | -1/Access | Scanned by Researcher 30772 | -1/Access | Destroyed Investigator 30853 | -1/Access | Spotted Striker 30854 | -1/Access | Spotted Striker 30855 | -1/Access | Allies destroyed Striker 30871 | -1/Access | Assimilating Striker into Collective. 30881 | -1/Access | Spotted Striker 30881 | -1/Access | Spotted Striker 30883 | -1/Access | System corruption reached 10% 30884 | -1/Access | Assimilating Champion 10a into Collective. 30898 | -1/Access | Allies destroyed Striker 30898 | -1/Access | Assimilating Striker into Collective. 30911 | -1/Access | Identified Subatomic Replicator 30911 | -1/Access | Used Subatomic Replicator to replicate Plasma Storm 30934 | -1/Access | Lost 4 allies 31014 | -1/Access | Destroyed Investigator 31031 | -1/Access | Lost 5 parts (1p3u1w) 31033 | -1/Access | Spotted Executioner 31040 | -1/Access | Lost 3 allies 31050 | -1/Access | Spotted Striker 31052 | -1/Access | Destroyed 8 combat bots 31060 | -1/Access | Spotted Executioner 31070 | -1/Access | Spotted Executioner 31070 | -1/Access | Spotted Executioner 31070 | -1/Access | Spotted Striker 31074 | *** | Escaped! Last Messages --------------- 31068_ B-74 Champion overheating. 31069_ Power failure, Lgt. Quantum Reactor shutdown. 31069_ Ended siege mode. 31069_ Stasis bubble strength at 95. 31069_ B-74 Champion overheating. 31069_ Penetrated by Slug. 31069_ Slug penetrates Sealed Heavy Doors. 31070_ B-74 Champion heat spikes uncontrollably. 31070_ Stasis bubble bursts. 31070_ Acquired 7 matter. 31070_ B-74 Champion overheating. 31072_ B-74 Champion heat spikes uncontrollably. 31072_ P-80 Master resets G-73 Enforcer, system corruption cleaned. 31072_ B-74 Champion overheating. 31073_ Penetrated by Slug. 31074_ B-74 Champion heat damages Med. Treads, Powered Hammer, Broken Rnf. Antimatter Reactor. Map ----- +----------------------------------------------------+ | ? ? ?? #???????# #??????# ] # | | ? """"" ????????# #??????# # | | ? """F"" ????????# #??????#" # | | ? """ "" ?????????# #??????#"" # | | ? ?????????# #??????#"" # | | ??????????# #??#####"" # | | =??????????# #### #"" # | | ???????????# + " #"T # | | ???????????# #### #"" # | | ? ????????????# #??## ##"" # | | ??? ????????????# ###?# ##"" # | | ######+####################+##"""""### ##"" # | | % %% #" # | | % " # | | ### #########################"" ### # # | | ??# #???????????????????????# " # # # | | ??# #???????????????????????###% #%"# # | | ??# #?????????????????????#### # # | | ??# #?????????????????????? ######## | | ??# #???????????????????????"% % #????? | | ??# #????########??##########*[ p #????? | | ??# #???# ""?" [!%= #????? | | ??#* #?##" "?" %= E ! #????? | | ###%=##### "?" E ##???? | | = "?" !%g %=% #???? | | = ^ "??" "@= #???? | | %% ^ "??" ""Kb E i #???? | | ^ "??" %g= #???? | | ######+### "??" % iK=%* #???? | | ## % = " "??" E%!%=* ##???? | | ## " "??" " =[*%%=[# #????? | | ## % % "########??########## # #%%* #????? | | ## ##??????????????????### ]#=! #????? | | ## #?????????????????????### #|%########## | | ## #???????????????????????? # " # | | ## ] #????????????????????????#### [# # | | #" #??######???????????????????# [+ # | | ############# #####################%!# " # | | ! ! "%!%# """ # | | * ! "*!# """ # | | ############# ###+################# # " # | | # ####?????###### # # # # | | # #?????????????# # # # # | | #* #?????????????# # # # " # | | # #?????????????# # # # """ # | | # #?????????????# # + # """ # | | # #?????????????# # # + " # | | # ?????????????# # # # # | | # ?????????????# # # # # | | # #????????????##################### # # | +----------------------------------------------------+ Best States ------------- Heat Dissipation 114 Energy Generation 107 Energy Capacity 1740 Matter Stores 400 Matter Capacity 400 Sight Range 16 Robot Scan Range 16 Terrain Scan Range 20 Terrain Scan Density 10 Jamming Range 14 Cloak Strength 4 Armor Coverage 1200 Resistance: TH 20 Core Shielding 30 Propulsion Shielding 90 Weapon Shielding 100 Phase Shifting 15 Evasion (%) 55 Core Analysis 8 Recoil Reduction 6 Energy Filtering 50 Offensive Hacking 33 Trap Extractor Capacity 4 Item Schematics ----------------- Flexi-carbon Leg | -6/Zion | Archive Point Defense System | -6/Zion | Archive Imp. Dynamic Insulation System | -6/Zion | Archive Adv. Signal Interpreter | -6/Zion | Archive Hvy. Shock Bomb Launcher | -6/Zion | Archive Lgt. Angular Momentum Engine | -6/Zion | Archive Imp. Force Field | -6/Zion | Archive Adv. Cooling System | -6/Zion | Archive Power Sword | -6/Zion | Archive Nuclear Pulse Thruster | -6/Zion | Archive Focal Shield | -6/Zion | Archive Hvy. Phase Cannon | -6/Zion | Archive Hvy. Flak Cannon | -6/Zion | Archive CPS Tube | -4/Factory | Scanalyzed Assault Drone Bay | -4/Zhirov | Free Exp. Heat Sink | -4/Zhirov | Free Exp. Optical Array | -4/Zhirov | Free Imp. Arc Thrower | -4/Zhirov | Free Exp. Hacking Suite | -2/Quarantine | Archive Com. Tesla Bomb Launcher | -2/Quarantine | Archive Prc. Energy Filter | -2/Quarantine | Archive Robot Schematics ------------------ O-24 Administrator | -6/Zion | Archive R-06 Scavenger | -6/Zion | Archive L-41 Fighter | -6/Zion | Archive X-82 Rainmaker | -6/Zion | Archive G-67 Veteran | -2/Quarantine | Archive Fabricated ------------ Adv. Heavy Siege Treads | x1 | -5/Factory | Preloaded Repaired ---------- Nothing Studied --------- Arm. Huge Wheel | -4/Factory | Hacked Wheel | -4/Factory | Hacked Arm. Wheel | -4/Factory | Hacked Quantum Reactor | -2/Quarantine | Hacked Centrium Wheel | -2/Quarantine | Hacked Alien Tech Used ----------------- Core Expander Integrated Reactor Sigix Broadsword Subatomic Replicator Achievements -------------- Doshington Challenges ------------ None Game ------ Seed DimensionalArmorFalx Manual? 0 Play Time 05:49:47 Cumulative 1644.9 hours Start 2026.06.22 @ 22:03:48 End 2026.06.23 @ 17:58:05 Sessions 5 Manual Loads 0 Difficulty Rogue Special Mode None Game No. 509 Rogue 502 Adventurer 4 Explorer 3 Win Type 0 Total 62 Types 29/8/3/4/1/4/6/2/3/2 Lore% 98 Gallery% 96 Achievement% 90 Wizard Run 0 Options --------- Layout 2 ASCII 0 Keyboard 0 Movement Numpad Keybinds 0 Fullscreen 2 Font 24/Smallcaps Map View 50x44 Zoom Use 0% Tactical HUD 1 Map Filters NONE Filters NONE Steam 1 RUN: 1fbf655f-643c-4174-9e41-d68cb78bbc84